lending/lending_fUSD_20250131
["ID","MTS","AMOUNT","RATE_DAILY","PERIOD"]
[351134876,1738348251010,-500.0,0.0001753,2]
[351134877,1738348251019,-500.0,0.0001753,2]
[351134878,1738348251028,-503.45562398,0.0001753,2]
[351134879,1738348251037,-500.0,0.0001753,2]
[351134880,1738348251048,-447.74793963,0.0001753,2]
[351134881,1738348251059,-500.0,0.0001753,2]
[351134882,1738348251068,-500.0,0.0001753,2]
[351134883,1738348251077,-513.27174949,0.0001753,2]
[351134884,1738348251086,-500.0,0.0001753,2]
[351134885,1738348251096,-500.0,0.0001753,2]
[351134886,1738348251109,-500.0,0.0001753,2]
[351134887,1738348251119,-503.45533526,0.0001753,2]
[351134888,1738348251129,-161.30533169,0.0001753,2]
[351134889,1738348251139,-500.0,0.0001753,2]
[351134890,1738348251148,-500.0,0.0001753,2]
[351134891,1738348251158,-500.0,0.0001753,2]
[351134892,1738348251172,-500.0,0.0001753,2]
[351134893,1738348251181,-500.0,0.0001753,2]
[351134894,1738348251191,-500.0,0.0001753,2]
[351134895,1738348251200,-500.0,0.0001753,2]
[351134896,1738348251209,-638.15114349,0.0001753,2]
[351134897,1738348251219,-500.0,0.0001753,2]
[351134898,1738348251228,-515.34054722,0.0001753,2]
[351134899,1738348251238,-500.0,0.0001753,2]
[351134900,1738348251248,-521.88105671,0.0001753,2]
[351134901,1738348251257,-500.0,0.0001753,2]
[351134902,1738348251266,-500.0,0.0001753,2]
[351134903,1738348251275,-509.36413912,0.0001753,2]
[351134904,1738348251285,-502.14418567,0.0001753,2]
[351134905,1738348251295,-500.0,0.0001753,2]
[351134906,1738348251305,-500.0,0.0001753,2]
[351134907,1738348251314,-500.0,0.0001753,2]
[351134908,1738348251323,-503.86461351,0.0001753,2]
[351134909,1738348251333,-500.0,0.0001753,2]
[351134910,1738348251342,-509.58718179,0.0001753,2]
[351134911,1738348251351,-500.0,0.0001753,2]
[351134912,1738348251360,-500.0,0.0001753,2]
[351134913,1738348251370,-500.0,0.0001753,2]
[351134914,1738348251379,-786.06,0.0001753,2]
[351134915,1738348251388,-500.0,0.0001753,2]
[351134916,1738348251397,-500.0,0.0001753,2]
[351134917,1738348251407,-500.0,0.0001753,2]
[351134918,1738348251419,-744.03,0.0001753,2]
[351134919,1738348251428,-500.0,0.0001753,2]
[351134920,1738348251437,-1041.45,0.0001753,2]
[351134921,1738348251446,-500.0,0.0001753,2]
[351134922,1738348251455,-500.0,0.0001753,2]
[351134923,1738348251465,-679.36,0.0001753,2]
[351134924,1738348251474,-500.0,0.0001753,2]
[351134925,1738348251484,-639.49,0.0001753,2]
[351134926,1738348251495,-983.34,0.0001753,2]
[351134927,1738348251509,-853.27,0.0001753,2]
[351134928,1738348251518,-500.0,0.0001753,2]
[351134929,1738348251528,-2290.49,0.0001753,2]
[351134930,1738348251539,-15748.87,0.0001753,2]
[351134931,1738348251549,-1756.23,0.0001753,2]
[351134932,1738348251559,-5804.66,0.0001753,2]
[351134933,1738348251568,-1011.15,0.0001753,2]
[351134934,1738348251579,-463.23574927,0.0001753,2]
[351134935,1738348251588,-1398.05,0.0001753,2]
[351134936,1738348251598,-500.0,0.0001753,2]
[351134937,1738348251607,-500.0,0.0001753,2]
[351134938,1738348251619,-706.26,0.0001753,2]
[351134939,1738348251631,-500.0,0.0001753,2]
[351134940,1738348251640,-167.48776514,0.0001753,2]
[351134941,1738348251650,-1396.62,0.0001753,2]
[351134942,1738348251710,-500.0,0.0001753,2]
[351134943,1738348251719,-1348.69,0.0001753,2]
[351134944,1738348251729,-514.78846079,0.0001753,2]
[351134945,1738348251738,-500.0,0.0001753,2]
[351134946,1738348251748,-1000.0,0.0001753,2]
[351134947,1738348251757,-1491.37,0.0001753,2]
[351134948,1738348251766,-41031.64818031,0.00017531,2]
[351134949,1738348251776,-239.40124393,0.00017531,2]
[351134950,1738348251785,-463.66184334,0.00017531,2]
[351134951,1738348251794,-500.0,0.00017531,2]
[351134952,1738348251804,-500.0,0.00017531,2]
[351134953,1738348251813,-500.0,0.00017531,2]
[351134954,1738348251823,-500.0,0.00017531,2]
[351134955,1738348251832,-500.0,0.00017531,2]
[351134956,1738348251841,-500.0,0.00017531,2]
[351134957,1738348251850,-592.09,0.00017531,2]
[351134958,1738348251859,-500.0,0.00017531,2]
[351134959,1738348251869,-541.54,0.00017531,2]
[351134960,1738348251878,-500.0,0.00017531,2]
[351134961,1738348251888,-661.57,0.00017531,2]
[351134962,1738348251897,-500.0,0.00017531,2]
[351134963,1738348251907,-500.0,0.00017531,2]
[351134964,1738348251920,-568.28,0.00017531,2]
[351134965,1738348251929,-500.0,0.00017531,2]
[351134966,1738348251938,-517.91,0.00017531,2]
[351134967,1738348251947,-500.0,0.00017531,2]
[351134968,1738348251957,-500.0,0.00017531,2]
[351134969,1738348251966,-500.0,0.00017531,2]
[351134970,1738348251975,-573.54,0.00017531,2]
[351134971,1738348251983,-500.0,0.00017531,2]
[351134972,1738348251992,-500.0,0.00017531,2]
[351134973,1738348252003,-730.37,0.00017531,2]
[351134974,1738348252012,-1026.2,0.00017531,2]
[351134975,1738348252021,-500.0,0.00017531,2]
[351134976,1738348252030,-536.25,0.00017531,2]
[351134977,1738348252039,-978.34,0.00017531,2]
[351134978,1738348252048,-1577.73,0.00017531,2]
[351134979,1738348252057,-519.92,0.00017531,2]
[351134980,1738348252066,-932.35,0.00017531,2]
[351134981,1738348252076,-647.42,0.00017531,2]
[351134982,1738348252085,-286.106421,0.00017531,2]
[351134983,1738348252094,-2652.51,0.00017531,2]
[351134984,1738348252104,-500.0,0.00017531,2]
[351134985,1738348252113,-551.45,0.00017531,2]
[351134986,1738348252123,-616.52,0.00017531,2]
[351134987,1738348252132,-1010.98,0.00017531,2]
[351134988,1738348252141,-611.99,0.00017531,2]
[351134989,1738348252150,-1917.23,0.00017531,2]
[351134990,1738348252159,-345.181563,0.00017531,2]
[351134991,1738348252171,-1746.14,0.00017531,2]
[351134992,1738348252181,-1127.11,0.00017531,2]
[351134993,1738348252190,-957.27,0.00017531,2]
[351134994,1738348252199,-683.39,0.00017531,2]
[351134995,1738348252208,-834.53,0.00017531,2]
[351134996,1738348252217,-500.0,0.00017531,2]
[351134997,1738348252227,-3304.95,0.00017531,2]
[351134998,1738348252236,-162.579987,0.00017531,2]
[351134999,1738348252247,-1375.96,0.00017531,2]
[351135000,1738348252258,-1152.1,0.00017531,2]
[351135001,1738348252267,-1117.85,0.00017531,2]
[351135002,1738348252276,-637.73,0.00017531,2]
[351135003,1738348252285,-1174.79,0.00017531,2]
[351135004,1738348252294,-861.45,0.00017531,2]
[351135005,1738348252304,-1552.68,0.00017531,2]
[351135006,1738348252313,-5050.15,0.00017531,2]
[351135007,1738348252323,-1714.15,0.00017531,2]
[351135008,1738348252333,-970.54,0.00017531,2]
[351135009,1738348252343,-974.2,0.00017531,2]
[351135010,1738348252355,-2977.2,0.00017531,2]
[351135011,1738348252365,-2472.78,0.00017531,2]
[351135012,1738348252375,-2130.65,0.00017531,2]
[351135013,1738348252384,-164.88144,0.00017531,2]
[351135014,1738348252393,-2310.79,0.00017531,2]
[351135015,1738348252403,-3082.33,0.00017531,2]
[351135016,1738348252413,-1236.46,0.00017531,2]
[351135017,1738348252422,-500.0,0.00017531,2]
[351135018,1738348252431,-159.421069,0.00017531,2]
[351135019,1738348252441,-1531.95,0.00017531,2]
[351135020,1738348252449,-1897.38,0.00017531,2]
[351135021,1738348252459,-500.0,0.00017531,2]
[351135022,1738348252468,-4150.61,0.00017531,2]
[351135023,1738348252477,-4363.87,0.00017531,2]
[351135024,1738348252486,-500.0,0.00017531,2]
[351135025,1738348252495,-977.31,0.00017531,2]
[351135026,1738348252508,-500.0,0.00017531,2]
[351135027,1738348252518,-500.0,0.00017531,2]
[351135028,1738348252527,-500.0,0.00017531,2]
[351135029,1738348252538,-755.3,0.00017531,2]
[351135030,1738348252547,-7714.12222904,0.00017532,2]
[351135031,1738348252557,-657.65,0.00017532,2]
[351135032,1738348252566,-500.0,0.00017532,2]
[351135033,1738348252575,-500.0,0.00017532,2]
[351135034,1738348252584,-500.0,0.00017532,2]
[351135035,1738348252593,-500.0,0.00017532,2]
[351135036,1738348252602,-500.0,0.00017532,2]
[351135037,1738348252611,-500.0,0.00017532,2]
[351135038,1738348252621,-500.0,0.00017532,2]
[351135039,1738348252630,-500.0,0.00017532,2]
[351135040,1738348252639,-772.66,0.00017532,2]
[351135041,1738348252648,-632.36405057,0.00017532,2]
[351135042,1738348252657,-500.0,0.00017532,2]
[351135043,1738348252668,-500.0,0.00017532,2]
[351135044,1738348252678,-500.0,0.00017532,2]
[351135045,1738348252687,-500.0,0.00017532,2]
[351135046,1738348252696,-497.88161213,0.00017532,2]
[351135047,1738348252705,-606.93,0.00017532,2]
[351135048,1738348252714,-500.0,0.00017532,2]
[351135049,1738348252723,-522.94,0.00017532,2]
[351135050,1738348252733,-287.56852329,0.00017532,2]
[351135051,1738348252742,-691.72,0.00017532,2]
[351135052,1738348252751,-694.08,0.00017532,2]
[351135053,1738348252760,-500.0,0.00017532,2]
[351135054,1738348252770,-500.0,0.00017532,2]
[351135055,1738348252780,-622.01,0.00017532,2]
[351135056,1738348252789,-500.0,0.00017532,2]
[351135057,1738348252798,-500.0,0.00017532,2]
[351135058,1738348252807,-500.0,0.00017532,2]
[351135059,1738348252816,-500.0,0.00017532,2]
[351135060,1738348252825,-500.0,0.00017532,2]
[351135061,1738348252835,-799.89,0.00017532,2]
[351135062,1738348252844,-500.0,0.00017532,2]
[351135063,1738348252853,-666.3,0.00017532,2]
[351135064,1738348252863,-500.0,0.00017532,2]
[351135065,1738348252872,-536.21,0.00017532,2]
[351135066,1738348252882,-500.0,0.00017532,2]
[351135067,1738348252891,-1030.96,0.00017532,2]
[351135068,1738348252901,-872.1,0.00017532,2]
[351135069,1738348252910,-544.21,0.00017532,2]
[351135070,1738348252921,-500.0,0.00017532,2]
[351135071,1738348252930,-1315.77,0.00017532,2]
[351135072,1738348252939,-500.0,0.00017532,2]
[351135073,1738348252948,-4715.16,0.00017532,2]
[351135074,1738348252958,-500.0,0.00017532,2]
[351135075,1738348252968,-993.3,0.00017532,2]
[351135076,1738348252977,-2605.9,0.00017532,2]
[351135077,1738348252986,-4721.91,0.00017532,2]
[351135078,1738348252995,-236.14485275,0.00017532,2]
[351135079,1738348253005,-2283.47,0.00017532,2]
[351135080,1738348253015,-939.45,0.00017532,2]
[351135081,1738348253025,-2389.08,0.00017532,2]
[351135082,1738348253034,-500.0,0.00017532,2]
[351135083,1738348253044,-500.0,0.00017532,2]
[351135084,1738348253053,-557.93,0.00017532,2]
[351135085,1738348253063,-965.04,0.00017532,2]
[351135086,1738348253073,-565.22,0.00017532,2]
[351135087,1738348253082,-2395.63,0.00017532,2]
[351135088,1738348253092,-1060.87,0.00017532,2]
[351135089,1738348253101,-1276.49,0.00017532,2]
[351135090,1738348253110,-500.0,0.00017532,2]
[351135091,1738348253120,-500.0,0.00017532,2]
[351135092,1738348253129,-500.0,0.00017532,2]
[351135093,1738348253140,-500.0,0.00017532,2]
[351135094,1738348253150,-507.7114738,0.00017532,2]
[351135095,1738348253160,-973.6,0.00017532,2]
[351135096,1738348253172,-500.0,0.00017532,2]
[351135097,1738348253182,-870.13,0.00017532,2]
[351135098,1738348253192,-500.0,0.00017532,2]
[351135099,1738348253201,-500.0,0.00017533,2]
[351135100,1738348253211,-510.61,0.00017533,2]
[351135101,1738348253221,-500.0,0.00017533,2]
[351135102,1738348253231,-500.0,0.00017533,2]
[351135103,1738348253240,-560.15488329,0.00017533,2]
[351135104,1738348253249,-500.0,0.00017533,2]
[351135105,1738348253259,-500.0,0.00017533,2]
[351135106,1738348253268,-500.0,0.00017533,2]
[351135107,1738348253278,-500.0,0.00017533,2]
[351135108,1738348253288,-500.0,0.00017533,2]
[351135109,1738348253297,-500.0,0.00017533,2]
[351135110,1738348253306,-500.0,0.00017533,2]
[351135111,1738348253316,-500.0,0.00017533,2]
[351135112,1738348253325,-500.0,0.00017533,2]
[351135113,1738348253335,-500.0,0.00017533,2]
[351135114,1738348253344,-500.0,0.00017533,2]
[351135115,1738348253354,-500.0,0.00017533,2]
[351135116,1738348253363,-500.0,0.00017533,2]
[351135117,1738348253372,-1455.79,0.00017534,2]
[351135118,1738348253381,-686.9,0.00017534,2]
[351135119,1738348253391,-500.0,0.00017534,2]
[351135120,1738348253400,-500.0,0.00017534,2]
[351135121,1738348253409,-2551.27,0.00017534,2]
[351135122,1738348253421,-1359.74,0.00017534,2]
[351135123,1738348253431,-3164.08,0.00017534,2]
[351135124,1738348253440,-1771.52,0.00017534,2]
[351135125,1738348253449,-500.0,0.00017534,2]
[351135126,1738348253458,-3352.95,0.00017534,2]
[351135127,1738348253468,-1723.08,0.00017534,2]
[351135128,1738348253477,-500.0,0.00017534,2]
[351135129,1738348253488,-904.61,0.00017534,2]
[351135130,1738348253499,-3205.13,0.00017534,2]
[351135131,1738348253508,-2877.99,0.00017534,2]
[351135132,1738348253518,-2087.9,0.00017534,2]
[351135133,1738348253528,-500.0,0.00017534,2]
[351135134,1738348253538,-500.0,0.00017534,2]
[351135135,1738348253547,-2031.19,0.00017534,2]
[351135136,1738348253556,-1464.79,0.00017534,2]
[351135137,1738348253566,-500.0,0.00017534,2]
[351135138,1738348253576,-7094.67,0.00017534,2]
[351135139,1738348253587,-846.73,0.00017534,2]
[351135140,1738348253597,-1572.93,0.00017534,2]
[351135141,1738348253606,-2746.93568275,0.00017537,2]
[351135142,1738348253616,-275139.098169,0.00017537,2]
[351135143,1738348253627,-2746.93568275,0.00017538,2]
[351135144,1738348253636,-3857.06111452,0.00017539,2]
[351135145,1738348253646,-236.40111703,0.00017539,2]
[351135146,1738348253655,-3857.06111452,0.00017541,2]
[351135147,1738348253669,-275139.098169,0.00017541,2]
[351135148,1738348253679,-41060.96480354,0.00017542,2]
[351135149,1738348253688,-216.97278094,0.00017544,2]
[351135150,1738348253699,-76767.44055586,0.00017544,2]
[351135151,1738348253709,-41060.96480354,0.00017552,2]
[351135152,1738348253719,-149342.44945681,0.00017554,2]
[351135153,1738348253729,-3857.06111452,0.00017555,2]
[351135154,1738348253739,-236.40111703,0.00017556,2]
[351135155,1738348253749,-3857.06111452,0.00017557,2]
[351135156,1738348253759,-8240.80704827,0.00017557,2]
[351135157,1738348253768,-257.69384314,0.00017559,2]
[351135158,1738348253778,-167610.79862275,0.0001756,2]
[351135159,1738348253787,-7714.12222904,0.00017561,2]
[351135160,1738348253797,-3857.06111452,0.00017561,2]
[351135161,1738348253806,-41060.96480354,0.00017561,2]
[351135162,1738348253815,-1725.08254482,0.00017561,2]
[351135163,1738348253825,-167610.79862275,0.00017563,2]
[351135164,1738348253835,-250460.72985747,0.00017563,2]
[351135165,1738348253845,-15143.46899965,0.00017564,2]
[351135166,1738348253855,-428901.79407865,0.00017564,2]
[351135167,1738348253866,-76767.44055586,0.00017565,2]
[351135168,1738348253876,-200.0,0.00017567,2]
[351135169,1738348253886,-7714.12222904,0.00017567,2]
[351135170,1738348253896,-257.69384314,0.00017568,2]
[351135171,1738348253906,-149342.44945681,0.00017569,2]
[351135172,1738348253919,-8240.80704827,0.00017571,2]
[351135173,1738348253929,-1725.08254482,0.00017571,2]
[351135174,1738348253939,-2601.54408188,0.00017572,2]
[351135175,1738348253949,-22844.1499953,0.00017572,2]
[351135176,1738348253959,-3857.06111452,0.00017572,2]
[351135177,1738348253969,-428901.79407865,0.00017573,2]
[351135178,1738348253978,-500.0,0.00017573,2]
[351135179,1738348253988,-239.76103006,0.00017573,2]
[351135180,1738348253997,-1167.08484391,0.00017573,2]
[351135181,1738348254007,-216.97278094,0.00017576,2]
[351135182,1738348254016,-36450.03111063,0.00017578,2]
[351135183,1738348254026,-1725.08254482,0.00017578,2]
[351135184,1738348254035,-275139.098169,0.00017581,2]
[351135185,1738348254044,-236.40111703,0.00017584,2]
[351135186,1738348254054,-8240.80704827,0.00017584,2]
[351135187,1738348254063,-200.0,0.00017585,2]
[351135188,1738348254073,-167610.79862275,0.00017585,2]
[351135189,1738348254082,-239.40124393,0.00017588,2]
[351135190,1738348254091,-2601.54408188,0.00017589,2]
[351135191,1738348254101,-15143.46899965,0.00017591,2]
[351135192,1738348254110,-7714.12222904,0.00017593,2]
[351135193,1738348254119,-428901.79407865,0.00017593,2]
[351135194,1738348254129,-22844.1499953,0.00017595,2]
[351135195,1738348254138,-200.0,0.00017595,2]
[351135196,1738348254148,-239.40124393,0.00017595,2]
[351135197,1738348254157,-236.40111703,0.00017595,2]
[351135198,1738348254169,-15143.46899965,0.00017595,2]
[351135199,1738348254178,-22844.1499953,0.00017598,2]
[351135200,1738348254188,-41060.96480354,0.00017598,2]
[351135201,1738348254197,-158.78,0.00017599,2]
[351135202,1738348254207,-3416.777,0.00017599,2]
[351135203,1738348254216,-1000.0,0.00017603,2]
[351135204,1738348254227,-163.36585698,0.0001762,10]
[351135205,1738348254236,-1153.16590249,0.00017659,2]
[351135206,1738348254246,-500.0,0.00017667,2]
[351135207,1738348254255,-500.0,0.00017667,2]
[351135208,1738348254264,-500.0,0.00017667,2]
[351135209,1738348254274,-500.0,0.00017667,2]
[351135210,1738348254283,-500.0,0.00017667,2]
[351135211,1738348254294,-405.28130996,0.00017667,2]
[351135212,1738348254304,-500.0,0.00017667,2]
[351135213,1738348254314,-500.0,0.00017667,2]
[351135214,1738348254324,-383.84846871,0.00017667,2]
[351135215,1738348254334,-500.0,0.00017667,2]
[351135216,1738348254345,-500.0,0.00017667,2]
[351135217,1738348254355,-500.0,0.00017667,2]
[351135218,1738348254364,-500.0,0.00017667,2]
[351135219,1738348254374,-500.0,0.00017667,2]
[351135220,1738348254383,-500.0,0.00017667,2]
[351135221,1738348254393,-500.0,0.00017667,2]
[351135222,1738348254403,-500.0,0.00017667,2]
[351135223,1738348254412,-500.0,0.00017667,2]
[351135224,1738348254426,-500.0,0.00017667,2]
[351135225,1738348254436,-500.0,0.00017667,2]
[351135226,1738348254445,-503.17628624,0.00017667,2]
[351135227,1738348254455,-500.0,0.00017667,2]
[351135228,1738348254464,-382.11871258,0.00017667,2]
[351135229,1738348254474,-402.20174826,0.00017667,2]
[351135230,1738348254484,-500.92641914,0.00017667,2]
[351135231,1738348254494,-596.48499921,0.00017667,2]
[351135232,1738348254506,-642.91676605,0.00017667,2]
[351135233,1738348254516,-500.0,0.00017667,2]
[351135234,1738348254526,-500.0,0.00017667,2]
[351135235,1738348254536,-500.0,0.00017667,2]
[351135236,1738348254547,-500.0,0.00017667,2]
[351135237,1738348254556,-505.24873592,0.00017667,2]
[351135238,1738348254566,-500.0,0.00017667,2]
[351135239,1738348254576,-500.0,0.00017667,2]
[351135240,1738348254586,-786.06,0.00017667,2]
[351135241,1738348254596,-500.0,0.00017667,2]
[351135242,1738348254606,-500.0,0.00017667,2]
[351135243,1738348254615,-500.0,0.00017667,2]
[351135244,1738348254625,-744.03,0.00017667,2]
[351135245,1738348254635,-194.19760284,0.00017667,2]
[351135246,1738348254644,-1041.45,0.00017667,2]
[351135247,1738348254654,-500.0,0.00017667,2]
[351135248,1738348254665,-500.0,0.00017667,2]
[351135249,1738348254676,-679.36,0.00017667,2]
[351135250,1738348254686,-500.0,0.00017667,2]
[351135251,1738348254696,-639.49,0.00017667,2]
[351135252,1738348254705,-983.34,0.00017667,2]
[351135253,1738348254715,-853.27,0.00017667,2]
[351135254,1738348254725,-2290.49,0.00017667,2]
[351135255,1738348254735,-15748.87,0.00017667,2]
[351135256,1738348254745,-1756.23,0.00017667,2]
[351135257,1738348254755,-5804.66,0.00017667,2]
[351135258,1738348254764,-1011.15,0.00017667,2]
[351135259,1738348254774,-1398.05,0.00017667,2]
[351135260,1738348254783,-500.0,0.00017667,2]
[351135261,1738348254793,-500.0,0.00017667,2]
[351135262,1738348254803,-706.26,0.00017667,2]
[351135263,1738348254813,-1396.62,0.00017667,2]
[351135264,1738348254823,-604.68903534,0.00017667,2]
[351135265,1738348254833,-1348.69,0.00017667,2]
[351135266,1738348254843,-500.0,0.00017667,2]
[351135267,1738348254853,-1000.0,0.00017667,2]
[351135268,1738348254862,-1491.37,0.00017667,2]
[351135269,1738348254872,-500.0,0.00017668,2]
[351135270,1738348254881,-500.0,0.00017668,2]
[351135271,1738348254891,-500.0,0.00017668,2]
[351135272,1738348254900,-500.0,0.00017668,2]
[351135273,1738348254909,-500.0,0.00017668,2]
[351135274,1738348254922,-500.0,0.00017668,2]
[351135275,1738348254931,-592.09,0.00017668,2]
[351135276,1738348254941,-459.53961669,0.00017668,2]
[351135277,1738348254951,-541.54,0.00017668,2]
[351135278,1738348254960,-500.0,0.00017668,2]
[351135279,1738348254969,-661.57,0.00017668,2]
[351135280,1738348254979,-627.05470014,0.00017668,2]
[351135281,1738348254988,-500.0,0.00017668,2]
[351135282,1738348254997,-568.28,0.00017668,2]
[351135283,1738348255007,-277.0825337,0.00017668,2]
[351135284,1738348255016,-517.91,0.00017668,2]
[351135285,1738348255025,-500.0,0.00017668,2]
[351135286,1738348255035,-500.0,0.00017668,2]
[351135287,1738348255045,-500.0,0.00017668,2]
[351135288,1738348255055,-573.54,0.00017668,2]
[351135289,1738348255064,-500.0,0.00017668,2]
[351135290,1738348255074,-500.0,0.00017668,2]
[351135291,1738348255084,-730.37,0.00017668,2]
[351135292,1738348255094,-1026.2,0.00017668,2]
[351135293,1738348255104,-500.0,0.00017668,2]
[351135294,1738348255113,-536.25,0.00017668,2]
[351135295,1738348255123,-978.34,0.00017668,2]
[351135296,1738348255132,-519.92,0.00017668,2]
[351135297,1738348255142,-932.35,0.00017668,2]
[351135298,1738348255151,-1577.73,0.00017668,2]
[351135299,1738348255161,-647.42,0.00017668,2]
[351135300,1738348255175,-286.106421,0.00017668,2]
[351135301,1738348255184,-2652.51,0.00017668,2]
[351135302,1738348255193,-500.0,0.00017668,2]
[351135303,1738348255202,-551.45,0.00017668,2]
[351135304,1738348255212,-616.52,0.00017668,2]
[351135305,1738348255221,-1010.98,0.00017668,2]
[351135306,1738348255231,-611.99,0.00017668,2]
[351135307,1738348255240,-1917.23,0.00017668,2]
[351135308,1738348255250,-345.181563,0.00017668,2]
[351135309,1738348255261,-1746.14,0.00017668,2]
[351135310,1738348255271,-1127.11,0.00017668,2]
[351135311,1738348255280,-957.27,0.00017668,2]
[351135312,1738348255290,-683.39,0.00017668,2]
[351135313,1738348255300,-834.53,0.00017668,2]
[351135314,1738348255310,-413.95062209,0.00017668,2]
[351135315,1738348255320,-3304.95,0.00017668,2]
[351135316,1738348255330,-1375.96,0.00017668,2]
[351135317,1738348255341,-1152.1,0.00017668,2]
[351135318,1738348255351,-1117.85,0.00017668,2]
[351135319,1738348255361,-637.73,0.00017668,2]
[351135320,1738348255371,-151.742883,0.00017668,2]
[351135321,1738348255380,-1174.79,0.00017668,2]
[351135322,1738348255389,-861.45,0.00017668,2]
[351135323,1738348255399,-1552.68,0.00017668,2]
[351135324,1738348255409,-5050.15,0.00017668,2]
[351135325,1738348255424,-1714.15,0.00017668,2]
[351135326,1738348255434,-970.54,0.00017668,2]
[351135327,1738348255443,-974.2,0.00017668,2]
[351135328,1738348255453,-2977.2,0.00017668,2]
[351135329,1738348255463,-2472.78,0.00017668,2]
[351135330,1738348255472,-2130.65,0.00017668,2]
[351135331,1738348255483,-2310.79,0.00017668,2]
[351135332,1738348255494,-3082.33,0.00017668,2]
[351135333,1738348255507,-1236.46,0.00017668,2]
[351135334,1738348255519,-500.0,0.00017668,2]
[351135335,1738348255529,-1531.95,0.00017668,2]
[351135336,1738348255538,-1897.38,0.00017668,2]
[351135337,1738348255549,-500.0,0.00017668,2]
[351135338,1738348255559,-4363.87,0.00017668,2]
[351135339,1738348255568,-4150.61,0.00017668,2]
[351135340,1738348255579,-500.0,0.00017668,2]
[351135341,1738348255588,-166.309678,0.00017668,2]
[351135342,1738348255598,-977.31,0.00017668,2]
[351135343,1738348255607,-500.0,0.00017668,2]
[351135344,1738348255617,-151.74288,0.00017668,2]
[351135345,1738348255626,-500.0,0.00017668,2]
[351135346,1738348255636,-500.0,0.00017668,2]
[351135347,1738348255646,-755.3,0.00017668,2]
[351135348,1738348255656,-657.65,0.00017669,2]
[351135349,1738348255668,-500.0,0.00017669,2]
[351135350,1738348255678,-500.0,0.00017669,2]
[351135351,1738348255688,-500.0,0.00017669,2]
[351135352,1738348255698,-500.0,0.00017669,2]
[351135353,1738348255708,-500.0,0.00017669,2]
[351135354,1738348255718,-500.0,0.00017669,2]
[351135355,1738348255888,-500.0,0.00017669,2]
[351135356,1738348255898,-500.0,0.00017669,2]
[351135357,1738348255908,-772.66,0.00017669,2]
[351135358,1738348255920,-500.0,0.00017669,2]
[351135359,1738348255930,-500.0,0.00017669,2]
[351135360,1738348255940,-500.0,0.00017669,2]
[351135361,1738348255949,-606.93,0.00017669,2]
[351135362,1738348255958,-500.0,0.00017669,2]
[351135363,1738348255967,-522.94,0.00017669,2]
[351135364,1738348255977,-691.72,0.00017669,2]
[351135365,1738348255987,-694.08,0.00017669,2]
[351135366,1738348255996,-500.0,0.00017669,2]
[351135367,1738348256005,-500.0,0.00017669,2]
[351135368,1738348256014,-622.01,0.00017669,2]
[351135369,1738348256023,-500.0,0.00017669,2]
[351135370,1738348256032,-500.0,0.00017669,2]
[351135371,1738348256042,-500.0,0.00017669,2]
[351135372,1738348256051,-500.0,0.00017669,2]
[351135373,1738348256060,-799.89,0.00017669,2]
[351135374,1738348256070,-500.0,0.00017669,2]
[351135375,1738348256079,-666.3,0.00017669,2]